fUSD/lending_fUSD_20260118
["ID","MTS","AMOUNT","RATE_DAILY","PERIOD"]
[402549397,1768704706275,-500.0,0.00014654,2]
[402549398,1768704706284,-500.0,0.00014654,2]
[402549399,1768704706295,-325.10234939,0.00014754,2]
[402549400,1768704706306,-551.27,0.00016438,2]
[402549401,1768704706315,-219.96673523,0.00016438,2]
[402549402,1768704706344,-439.68418257,0.00016438,2]
[402549403,1768704706369,-119.7481082,0.00016438,2]
[402549404,1768704706379,-327.782128,0.00016438,2]
[402549405,1768704706389,-1076.90779,0.00016438,2]
[402549406,1768704706398,-206.82951,0.00016438,2]
[402549407,1768704706407,-1076.90779,0.00016438,2]
[402549408,1768704706417,-327.782128,0.00016438,2]
[402549409,1768704706426,-620.954893,0.00016438,2]
[402549410,1768704706436,-206.82951,0.00016438,2]
[402549411,1768704706446,-1076.90779,0.00016438,2]
[402549412,1768704706455,-327.782128,0.00016438,2]
[402549413,1768704706465,-620.954893,0.00016438,2]
[402549414,1768704706475,-1390.537719,0.00016438,2]
[402549415,1768704706485,-206.82951,0.00016438,2]
[402549416,1768704706495,-620.954893,0.00016438,2]
[402549417,1768704706506,-852.629276,0.000165,2]
[402549418,1768704706516,-852.629276,0.000165,2]
[402549419,1768704706526,-852.629276,0.000165,2]
[402549420,1768704706536,-852.629276,0.00016586,2]
[402549421,1768704706546,-779.399026,0.00016586,2]
[402549422,1768704706555,-327.782128,0.00016586,2]
[402549423,1768704706565,-1076.90779,0.00016586,2]
[402549424,1768704706575,-852.629276,0.00016586,2]
[402549425,1768704706584,-172.25858075,0.00016586,2]
[402549426,1768704706597,-34.57092925,0.00016586,2]
[402549427,1768704706607,-250.23128336,0.00016586,2]
[402549428,1768704706651,-826.67650664,0.00016586,2]
[402549429,1768704706660,-327.782128,0.00016586,2]
[402549430,1768704706670,-620.954893,0.00016586,2]
[402549431,1768704706684,-852.629276,0.00016586,2]
[402549432,1768704706700,-206.82951,0.00016586,2]
[402549433,1768704706711,-1076.90779,0.00016586,2]
[402549434,1768704706722,-327.782128,0.00016586,2]
[402549435,1768704706733,-620.954893,0.00016586,2]
[402549436,1768704706745,-852.629276,0.00016586,2]
[402549437,1768704706755,-1390.537719,0.00016586,2]
[402549438,1768704706767,-206.82951,0.00016586,2]
[402549439,1768704706778,-779.399026,0.00016712,2]
[402549440,1768704706790,-1076.90779,0.00016712,2]
[402549441,1768704706800,-327.782128,0.00016712,2]
[402549442,1768704706810,-852.629276,0.00016712,2]
[402549443,1768704706820,-327.782128,0.00016712,2]
[402549444,1768704706830,-1076.90779,0.00016712,2]
[402549445,1768704706840,-779.399026,0.00016712,2]
[402549446,1768704706850,-779.399026,0.00016712,2]
[402549447,1768704706860,-327.782128,0.00016712,2]
[402549448,1768704706870,-1076.90779,0.00016712,2]
[402549449,1768704706880,-327.782128,0.00016712,2]
[402549450,1768704706891,-1076.90779,0.00016712,2]
[402549451,1768704706902,-852.629276,0.00016712,2]
[402549452,1768704706913,-206.82951,0.00016712,2]
[402549453,1768704706923,-206.82951,0.00016712,2]
[402549454,1768704706934,-1076.90779,0.00016712,2]
[402549455,1768704706944,-327.782128,0.00016712,2]
[402549456,1768704706955,-620.954893,0.00016712,2]
[402549457,1768704706965,-1076.90779,0.00016712,2]
[402549458,1768704706976,-327.782128,0.00016712,2]
[402549459,1768704706986,-620.954893,0.00016712,2]
[402549460,1768704706996,-852.629276,0.00016712,2]
[402549461,1768704707007,-206.82951,0.00016712,2]
[402549462,1768704707018,-1076.90779,0.00016712,2]
[402549463,1768704707028,-206.82951,0.00016712,2]
[402549464,1768704707038,-327.782128,0.00016712,2]
[402549465,1768704707048,-1076.90779,0.00016712,2]
[402549466,1768704707059,-620.954893,0.00016712,2]
[402549467,1768704707069,-327.782128,0.00016712,2]
[402549468,1768704707079,-620.954893,0.00016712,2]
[402549469,1768704707089,-852.629276,0.00016712,2]
[402549470,1768704707099,-655.50842267,0.00016712,2]
[402549471,1768704707161,-735.02929633,0.00016712,2]
[402549472,1768704707171,-551.27,0.00016712,2]
[402549473,1768704707181,-206.82951,0.00016712,2]
[402549474,1768704707192,-1390.537719,0.00016712,2]
[402549475,1768704707202,-130.75915154,0.00016986,2]
[402549476,1768704707214,-440.02925627,0.00016986,2]
[402549477,1768704707229,-208.61061819,0.00016986,2]
[402549478,1768704707240,-327.782128,0.00016986,2]
[402549479,1768704707251,-1067.57587822,0.00016986,2]
[402549480,1768704784441,600.0,0.00027397,120]
[402549481,1768705024451,-250.0,0.0001449,2]
[402549482,1768705024473,-195.0,0.00014558,2]
[402549483,1768705024497,-1200.0,0.00014653,2]
[402549484,1768705024520,-300.0,0.00014753,2]
[402549485,1768705024543,-500.0,0.00014754,2]
[402549486,1768705024565,-585.96371242,0.00014754,2]
[402549487,1768705024588,-500.0,0.00014754,2]
[402549488,1768705024610,-500.74188638,0.00014754,2]
[402549489,1768705024632,-500.0,0.00014754,2]
[402549490,1768705025732,250.0,0.00014524,2]
[402549491,1768705036538,500.0,0.00014653,2]
[402549496,1768705123309,500.0,0.00014754,2]
[402549497,1768705123549,500.0,0.00014754,2]
[402549498,1768705123809,613.73032817,0.00014754,2]
[402549499,1768705209833,503.0,0.000273,120]
[402549555,1768705829278,1743.93126,0.00014754,2]
[402549564,1768705831684,-257.87596969,0.00015448,2]
[402549571,1768705831791,-713.31000779,0.00015448,2]
[402549572,1768705831802,-1168.18354245,0.00015448,2]
[402549573,1768705831813,-605.71259571,0.00015448,2]
[402549574,1768705831825,-210.40788436,0.00015448,2]
[402549575,1768705831835,-239.25825738,0.00015451,2]
[402549576,1768705831856,-556.88174262,0.00015451,2]
[402549577,1768705831867,-172.63108766,0.00015463,2]
[402549578,1768705831878,-1026.4300804,0.00015463,2]
[402549579,1768705831889,-0.93883194,0.00015463,2]
[402549580,1768705831898,-258.45132628,0.00015464,2]
[402549581,1768705831920,-1167.52965243,0.00015464,2]
[402549599,1768705837784,-2875.88902129,0.00015464,2]
[402549600,1768705837794,-300.0,0.00015553,2]
[402549601,1768705837804,-150.0,0.00015554,2]
[402549602,1768705837815,-152.97,0.00015589,2]
[402549603,1768705837826,-166.66,0.00015868,2]
[402549604,1768705837835,-322.6107,0.00016151,2]
[402549605,1768705837846,-578.20924308,0.00016151,2]
[402549606,1768705837856,-174.61919141,0.00016151,2]
[402549607,1768705837865,-4001.0,0.00016151,2]
[402549608,1768705837874,-869.37735763,0.00016151,2]
[402549609,1768705837919,-1897.5049889,0.00016151,2]
[402549610,1768705837929,-510.79912752,0.00016152,2]
[402549611,1768705837938,-150.0,0.000162,2]
[402549612,1768705837948,-151.0,0.00016224,2]
[402549613,1768705837958,-151.0,0.00016224,2]
[402549614,1768705837969,-151.0,0.00016225,2]
[402549615,1768705837979,-151.0,0.00016225,2]
[402549616,1768705837988,-239.45,0.00016225,2]
[402549617,1768705837998,-151.0,0.00016235,2]
[402549618,1768705838008,-745076.39388309,0.00016238,2]
[402549619,1768705838020,-853.92866026,0.00016238,2]
[402549620,1768705838035,-10747.99580958,0.00016238,2]
[402549623,1768705838077,-1120.52261416,0.00016238,2]
[402549781,1768705839848,-366.07666003,0.00016238,2]
[402549787,1768705839894,-10185.87604076,0.00016238,2]
[402549870,1768705840667,-2989.52194023,0.00016238,2]
[402549883,1768705840778,-8583.52896446,0.00016238,2]
[402549887,1768705840801,-220076.15542743,0.00016238,2]
[402549889,1768705840810,-550.0,0.00016252,2]
[402549891,1768705840819,-245.56266976,0.00016253,2]
[402549893,1768705840828,-648.04377067,0.00016253,2]
[402549895,1768705840838,-1143.22602654,0.00016253,2]
[402549897,1768705840847,-1710.19776385,0.00016253,2]
[402549899,1768705840856,-2313.9567,0.00016253,2]
[402549901,1768705840865,-14301.19579576,0.00016338,2]
[402549903,1768705840874,-510.79912751,0.00016346,2]
[402549905,1768705840883,-500.0,0.00016354,2]
[402549907,1768705840892,-500.0,0.00016354,2]
[402549909,1768705840901,-500.0,0.00016354,2]
[402549911,1768705840910,-500.0,0.00016354,2]
[402549913,1768705840919,-501.87734056,0.00016354,2]
[402549914,1768705840929,-500.0,0.00016354,2]
[402549917,1768705840938,-500.0,0.00016354,2]
[402549919,1768705840948,-500.0,0.00016354,2]
[402549921,1768705840957,-500.0,0.00016354,2]
[402549923,1768705840968,-500.0,0.00016354,2]
[402549924,1768705840977,-300.0,0.00016354,2]
[402549926,1768705840986,-250.0,0.00016354,2]
[402549927,1768705840994,-556.45764828,0.00016354,2]
[402549928,1768705841003,-500.0,0.00016354,2]
[402549929,1768705841012,-500.0,0.00016354,2]
[402549930,1768705841022,-500.0,0.00016354,2]
[402549931,1768705841031,-500.0,0.00016354,2]
[402549932,1768705841040,-500.0,0.00016354,2]
[402549933,1768705841054,-500.0,0.00016354,2]
[402549934,1768705841063,-500.0,0.00016354,2]
[402549935,1768705841071,-500.0,0.00016354,2]
[402549936,1768705841081,-500.0,0.00016354,2]
[402549937,1768705841090,-500.0,0.00016354,2]
[402549938,1768705841099,-500.0,0.00016354,2]
[402549939,1768705841108,-500.0,0.00016354,2]
[402549940,1768705841118,-500.0,0.00016354,2]
[402549941,1768705841128,-500.0,0.00016354,2]
[402549942,1768705841137,-504.14031878,0.00016354,2]
[402549943,1768705841146,-500.0,0.00016354,2]
[402549944,1768705841155,-500.0,0.00016354,2]
[402549945,1768705841164,-500.0,0.00016354,2]
[402549946,1768705841173,-500.0,0.00016354,2]
[402549947,1768705841183,-500.0,0.00016354,2]
[402549948,1768705841193,-500.0,0.00016354,2]
[402549949,1768705841202,-500.0,0.00016354,2]
[402549950,1768705841211,-500.0,0.00016354,2]
[402549951,1768705841220,-500.0,0.00016354,2]
[402549952,1768705841229,-500.0,0.00016354,2]
[402549953,1768705841239,-203.08022131,0.00016354,2]
[402549954,1768705841249,-500.0,0.00016354,2]
[402549955,1768705841259,-500.0,0.00016354,2]
[402549956,1768705841268,-500.0,0.00016354,2]
[402549957,1768705841277,-500.0,0.00016356,2]
[402549958,1768705841286,-700.0,0.00016356,2]
[402549959,1768705841296,-500.0,0.00016356,2]
[402549960,1768705841305,-166.66,0.00016392,2]
[402549961,1768705841314,-467.79,0.000164,2]
[402549962,1768705841323,-483.79,0.000164,2]
[402549963,1768705841333,-467.79,0.000164,2]
[402549964,1768705841343,-1000.0,0.00016418,2]
[402549965,1768705841352,-732.4590379,0.00016418,2]
[402549966,1768705841361,-1000.0,0.00016418,2]
[402549967,1768705841371,-1000.0,0.00016418,2]
[402549968,1768705841380,-1000.0,0.00016418,2]
[402549969,1768705841389,-2000.0,0.00016418,2]
[402549970,1768705841398,-1000.0,0.00016418,2]
[402549971,1768705841407,-1000.0,0.00016418,2]
[402549972,1768705841416,-2000.0,0.00016418,2]
[402549973,1768705841425,-1000.0,0.00016418,2]
[402549974,1768705841434,-1000.0,0.00016418,2]
[402549975,1768705841443,-2000.0,0.00016418,2]
[402549976,1768705841452,-1000.0,0.00016418,2]
[402549977,1768705841462,-1000.0,0.00016418,2]
[402549978,1768705841471,-2000.0,0.00016418,2]
[402549979,1768705841480,-1000.0,0.00016418,2]
[402549980,1768705841489,-1000.0,0.00016418,2]
[402549981,1768705841498,-2000.0,0.00016418,2]
[402549982,1768705841507,-2000.0,0.00016418,2]
[402549983,1768705841516,-1000.0,0.00016418,2]
[402549985,1768705841526,-1000.0,0.00016418,2]
[402549986,1768705841535,-159.22590251,0.00016418,2]
[402549987,1768705841544,-1000.0,0.00016418,2]
[402549988,1768705841554,-2000.0,0.00016418,2]
[402549989,1768705841563,-2000.0,0.00016418,2]
[402549990,1768705841572,-2000.0,0.00016418,2]
[402549991,1768705841581,-500.0,0.00016418,2]
[402549992,1768705841591,-500.0,0.00016418,2]
[402549993,1768705841600,-500.0,0.00016418,2]
[402549994,1768705841609,-500.0,0.00016418,2]
[402549995,1768705841618,-500.0,0.00016418,2]
[402549996,1768705841627,-1500.0,0.00016418,2]
[402549997,1768705841637,-500.0,0.00016418,2]
[402549998,1768705841646,-500.0,0.00016418,2]
[402549999,1768705841655,-1500.0,0.00016418,2]
[402550000,1768705841664,-527.02085112,0.00016418,2]
[402550001,1768705841673,-500.0,0.00016418,2]
[402550002,1768705841682,-1500.0,0.00016418,2]
[402550003,1768705841691,-1500.0,0.00016418,2]
[402550004,1768705841700,-276.52158018,0.00016418,2]
[402550005,1768705841710,-1500.0,0.00016418,2]
[402550006,1768705841718,-1500.0,0.00016418,2]
[402550007,1768705841728,-151.0,0.00016418,2]
[402550008,1768705841736,-1500.0,0.00016418,2]
[402550009,1768705841746,-151.0,0.00016418,2]
[402550010,1768705841755,-1609.96189193,0.00016418,2]
[402550011,1768705841764,-574.12855637,0.00016418,2]
[402550012,1768705841773,-151.0,0.00016418,2]
[402550013,1768705841782,-151.0,0.00016418,2]
[402550014,1768705841791,-250.0,0.00016418,2]
[402550015,1768705841801,-151.0,0.00016418,2]
[402550016,1768705841811,-250.0,0.00016418,2]
[402550017,1768705841820,-151.0,0.00016418,2]
[402550018,1768705841829,-250.0,0.00016418,2]
[402550019,1768705841838,-151.0,0.00016418,2]
[402550020,1768705841847,-250.0,0.00016418,2]
[402550021,1768705841856,-151.0,0.00016418,2]
[402550022,1768705841865,-250.0,0.00016418,2]
[402550023,1768705841874,-500.0,0.00016418,2]
[402550024,1768705841883,-151.0,0.00016418,2]
[402550025,1768705841894,-275.96223638,0.00016418,2]
[402550026,1768705841903,-500.0,0.00016418,2]
[402550027,1768705841912,-151.0,0.00016418,2]
[402550028,1768705841922,-500.0,0.00016418,2]
[402550029,1768705841931,-151.0,0.00016418,2]
[402550030,1768705841940,-500.0,0.00016418,2]
[402550031,1768705841949,-500.0,0.00016418,2]
[402550032,1768705841958,-549.15986205,0.00016418,2]
[402550033,1768705841967,-620.0,0.00016418,2]
[402550034,1768705841976,-296.90404912,0.00016424,2]
[402550035,1768705841986,-2214.0359908,0.00016434,2]
[402550036,1768705841995,-2049.2528078,0.00016434,2]
[402550037,1768705842004,-2292.7422428,0.00016434,2]
[402550038,1768705842013,-23338.53370333,0.00016434,2]
[402550039,1768705843087,-783.94939895,0.00016434,2]
[402550040,1768705843099,-353.1863629,0.00016434,2]
[402550048,1768705845764,-11766.93645504,0.00016434,2]
[402550077,1768706073569,1000.0,0.00012,2]
[402550685,1768706449817,2000.0,0.00027397,120]
[402552280,1768706606803,192.96848583,0.00027397,120]
[402552426,1768706622284,183.2,0.00027397,120]
[402555091,1768706909383,869.59788,0.00014712,2]
[402555378,1768706946087,-166.1,0.00014758,2]
[402555379,1768706946108,-150.0,0.00014787,2]
[402555380,1768706946129,-167.78,0.00014911,2]
[402555627,1768706978884,200.0,0.000149,5]
[402555629,1768706984175,1308.54,0.00011972,2]
[402555743,1768706999743,6194.0,0.00027397,120]
[402555811,1768707011577,3401.649548,0.00014675,2]
[402555812,1768707011604,6315.03493303,0.00014675,2]
[402555876,1768707031441,222.0,0.00027397,120]
[402555884,1768707031888,-166.66,0.00013833,2]
[402555886,1768707031898,-166.66,0.00014124,2]
[402555888,1768707031908,-166.66,0.00014416,2]
[402555890,1768707031918,-3707.86640681,0.00014675,2]
[402555891,1768707031940,-534.48448,0.00014675,2]
[402555893,1768707032099,-4882.25463216,0.00014675,2]
[402555894,1768707032109,-166.66,0.00014707,2]
[402555895,1768707032118,-166.66,0.00014998,2]
[402555896,1768707032128,-1200.0,0.00014999,2]
[402555897,1768707032137,-150.0,0.00014999,2]
[402555898,1768707032147,-195.0,0.00015,2]
[402555899,1768707032161,-605.20007897,0.00015,2]
[402555900,1768707032173,-776.15703811,0.00015,2]
[402555901,1768707032184,-834.9769566,0.00015,2]
[402555902,1768707032197,-8682.22182235,0.00015,2]
[402555903,1768707032206,-28779.73343918,0.00015,2]
[402555904,1768707032216,-2428.19941575,0.0001506,2]
[402555905,1768707032226,-195.0,0.00015065,2]
[402555907,1768707032236,-151.0,0.00015103,2]
[402555908,1768707032246,-233.76808948,0.00015103,2]
[402555909,1768707032256,-41957.22425225,0.00015106,2]
[402555912,1768707032279,-853.92747061,0.00015106,2]
[402555915,1768707032300,-299.99,0.00015106,2]
[402555974,1768707038041,-335.96000004,0.00014999,2]
[402555976,1768707038055,-197.83336871,0.00014999,2]
[402555977,1768707038065,-500.0,0.00014999,2]
[402555978,1768707038076,-500.0,0.00014999,2]
[402555979,1768707038086,-500.0,0.00014999,2]
[402555980,1768707038096,-500.0,0.00014999,2]
[402555981,1768707038106,-500.0,0.00014999,2]
[402555982,1768707038116,-500.0,0.00014999,2]
[402555983,1768707038127,-500.0,0.00014999,2]
[402555984,1768707038137,-500.0,0.00014999,2]
[402555985,1768707038147,-500.0,0.00014999,2]
[402555986,1768707038157,-500.0,0.00014999,2]
[402555987,1768707038167,-500.0,0.00014999,2]
[402555988,1768707038177,-454.53002814,0.00014999,2]
[402555989,1768707038187,-500.0,0.00014999,2]
[402555990,1768707038198,-500.0,0.00014999,2]
[402555991,1768707038208,-500.0,0.00014999,2]
[402555992,1768707038219,-500.0,0.00014999,2]
[402555994,1768707038228,-590.52498413,0.00015105,2]
[402555995,1768707038238,-211.56831791,0.00015105,2]
[402555996,1768707038248,-215.05302895,0.00015105,2]
[402555997,1768707038258,-739459.63827167,0.00015106,2]
[402555998,1768707038271,-769.31118832,0.00015106,2]
[402556000,1768707038291,-67821.74312441,0.00015106,2]
[402556001,1768707038302,-17774.50198378,0.00015106,2]
[402556002,1768707038313,-333.83499999,0.00015106,2]
[402556004,1768707038325,-1315.20057105,0.00015106,2]
[402556006,1768707038336,-2996.79187002,0.00015106,2]
[402556008,1768707038348,-3633.35875968,0.00015106,2]
[402556011,1768707038359,-470.0,0.00015106,2]
[402556014,1768707038390,-963.02821688,0.00015106,2]
[402556152,1768707040002,-8904.92513306,0.00015106,2]
[402556154,1768707040014,-1685.2929534,0.00015106,2]
[402556181,1768707040267,-25994.80097107,0.00015106,2]
[402556188,1768707040323,-2054.98497725,0.00015106,2]
[402556191,1768707040335,-1356.92882032,0.00015106,2]
[402556193,1768707040346,-2602.99277642,0.00015106,2]
[402556195,1768707040357,-6242.16403104,0.00015106,2]
[402556204,1768707040431,-72509.35962878,0.00015106,2]
[402556206,1768707040442,-250.0,0.0001516,2]
[402556208,1768707040455,-1000.0,0.00015198,2]
[402556210,1768707040464,-46059.94,0.00015206,2]
[402556212,1768707040474,-166.66,0.00015289,2]
[402556214,1768707040483,-309.51,0.0001529,2]
[402556216,1768707040494,-1517.64,0.000153,2]
[402556218,1768707040504,-250.0,0.00015325,2]
[402556220,1768707040515,-2428.19941568,0.00015376,2]
[402556222,1768707040526,-3240.0,0.00015407,2]
[402556224,1768707040536,-324.08,0.00015421,2]
[402556226,1768707040546,-150.99,0.00015421,2]
[402556228,1768707040556,-12871.07621622,0.00015498,2]
[402556230,1768707040566,-500.0,0.00015526,2]
[402556232,1768707040575,-197.93603275,0.00015552,2]
[402556234,1768707040585,-918.292,0.00015561,2]
[402556236,1768707040595,-179.225,0.00015561,2]
[402556238,1768707040604,-9999.99,0.00015561,2]
[402556240,1768707040614,-344.37544549,0.00015561,2]
[402556242,1768707040623,-500.0,0.00015561,2]
[402556244,1768707040633,-144649.56,0.00015562,2]
[402556246,1768707040643,-200.0,0.00015598,2]
[402556248,1768707040654,-167.78,0.00015657,2]
[402556250,1768707040665,-151.0,0.00015658,2]
[402556252,1768707040674,-151.0,0.00015658,2]
[402556254,1768707040684,-255.62,0.00015658,2]
[402556256,1768707040693,-151.0,0.00015663,2]
[402556267,1768707040788,-151.0,0.00015663,2]
[402556269,1768707040798,-239.45,0.00015665,2]
[402556272,1768707040807,-2428.19941568,0.00015691,2]
[402556274,1768707040817,-12871.07621618,0.00015765,2]
[402556275,1768707040825,-500.0,0.000158,5]
[402556277,1768707040834,-800.0,0.000159,5]
[402556279,1768707040843,-384.6,0.00015918,2]
[402556281,1768707040853,-467.7,0.00015978,2]
[402556283,1768707040862,-467.7,0.00015978,2]
[402556285,1768707040870,-166.1,0.00015988,2]
[402556287,1768707040879,-18332.52253638,0.00016,4]
[402556289,1768707040889,-2428.19941568,0.00016007,2]
[402556291,1768707040898,-12871.07621618,0.00016032,2]
[402556293,1768707040907,-255.0,0.00016124,2]
[402556295,1768707040916,-1509.46447857,0.00016199,2]
[402556297,1768707040926,-150.0,0.000162,2]
[402556299,1768707040935,-5000.00173544,0.000162,5]
[402556301,1768707040944,-322.6107,0.00016201,2]
[402556303,1768707040953,-174.61919141,0.00016201,2]
[402556305,1768707040963,-585.60118943,0.00016201,2]
[402556307,1768707040972,-4001.0,0.00016201,2]
[402556309,1768707040981,-620.0,0.00016244,2]
[402556311,1768707040990,-574.12855637,0.00016244,2]
[402556313,1768707040999,-162.19899378,0.00016253,2]
[402556315,1768707041009,-525.87218236,0.00016253,2]
[402556317,1768707041019,-509.70341517,0.00016253,2]
[402556319,1768707041028,-500.0,0.00016253,2]
[402556321,1768707041038,-500.0,0.00016253,2]
[402556323,1768707041047,-509.37476542,0.00016253,2]
[402556325,1768707041057,-290.03433383,0.00016253,2]
[402556327,1768707041066,-528.10956924,0.00016253,2]
[402556329,1768707041075,-500.0,0.00016253,2]
[402556331,1768707041085,-500.0,0.00016253,2]
[402556333,1768707041094,-500.0,0.00016253,2]
[402556335,1768707041103,-500.0,0.00016253,2]
[402556337,1768707041113,-500.0,0.00016253,2]
[402556339,1768707041124,-592.82762265,0.00016253,2]
[402556341,1768707041133,-500.0,0.00016253,2]
[402556343,1768707041143,-500.0,0.00016253,2]
[402556345,1768707041152,-500.0,0.00016253,2]
[402556347,1768707041162,-263.09929564,0.00016253,2]
[402556349,1768707041171,-519.99855028,0.00016253,2]
[402556351,1768707041181,-500.0,0.00016253,2]
[402556353,1768707041191,-507.89334507,0.00016253,2]
[402556356,1768707041206,-500.0,0.00016253,2]
[402556357,1768707041220,-500.0,0.00016253,2]
[402556360,1768707041235,-500.0,0.00016253,2]
[402556361,1768707041244,-581.7488392,0.00016253,2]
[402556363,1768707041253,-500.0,0.00016253,2]
[402556365,1768707041263,-500.0,0.00016253,2]
[402556367,1768707041272,-500.0,0.00016253,2]
[402556369,1768707041281,-500.0,0.00016253,2]
[402556371,1768707041290,-500.0,0.00016253,2]
[402556373,1768707041300,-500.0,0.00016253,2]
[402556375,1768707041310,-500.0,0.00016253,2]
[402556377,1768707041319,-506.13707456,0.00016253,2]
[402556379,1768707041329,-500.0,0.00016253,2]
[402556381,1768707041337,-500.0,0.00016253,2]
[402556383,1768707041347,-12871.07621618,0.00016299,2]
[402556385,1768707041356,-250.0,0.0001632,2]
[402556387,1768707041365,-2428.19941568,0.00016322,2]
[402556389,1768707041375,-500.0,0.00016356,2]
[402556392,1768707041385,-600.0,0.00016356,2]
[402556393,1768707041394,-500.0,0.00016356,2]
[402556395,1768707041403,-934.86,0.00016356,2]
[402556397,1768707041412,-405.55442242,0.000164,2]
[402556399,1768707041422,-167.78,0.00016402,2]
[402556401,1768707041432,-500.0,0.00016411,2]
[402556403,1768707041441,-30455.1607,0.00016412,2]
[402556405,1768707041454,-1000.0,0.00016412,2]
[402556407,1768707041463,-14754.6664448,0.00016428,2]
[402556409,1768707041473,-90657.1434975,0.00016428,2]
[402556411,1768707041482,-2021.7835127,0.00016428,2]
[402556413,1768707041492,-157.1172006,0.00016428,2]
[402556415,1768707041501,-35254.75085448,0.00016434,2]
[402556417,1768707041510,-9326.6576691,0.00016434,2]
[402556419,1768707041519,-200.0,0.00016434,2]
[402556421,1768707041528,-151.69568122,0.00016434,2]
[402556423,1768707041537,-1275.61846148,0.00016434,2]
[402556425,1768707041546,-151.0,0.00016434,2]
[402556427,1768707041556,-500.0,0.00016437,2]
[402556429,1768707041567,-500.0,0.00016437,2]
[402556431,1768707041576,-501.32651158,0.00016438,2]
[402556433,1768707041585,-501.36673818,0.00016438,2]
[402556435,1768707041596,-502.06349229,0.00016438,2]
[402556437,1768707041605,-501.8149228,0.00016438,2]
[402556439,1768707041615,-500.35695421,0.00016438,2]
[402556441,1768707041623,-502.40375353,0.00016438,2]
[402556443,1768707041633,-499.99558861,0.00016438,2]
[402556445,1768707041643,-500.0,0.00016438,2]
[402556447,1768707041653,-500.0,0.00016438,2]
[402556450,1768707041662,-500.0,0.00016438,2]
[402556452,1768707041672,-844.8658354,0.00016438,2]
[402556454,1768707041681,-500.0,0.00016438,2]
[402556456,1768707041691,-500.0,0.00016438,2]
[402556458,1768707041701,-500.0,0.00016438,2]
[402556460,1768707041710,-756.84,0.00016438,2]
[402556462,1768707041719,-500.0,0.00016438,2]
[402556464,1768707041729,-500.0,0.00016438,2]
[402556466,1768707041739,-500.0,0.00016438,2]
[402556468,1768707041748,-500.0,0.00016438,2]
[402556470,1768707041758,-500.0,0.00016438,2]
[402556472,1768707041768,-266.48689435,0.00016438,2]
[402556474,1768707041777,-500.0,0.00016438,2]
[402556476,1768707041786,-500.0,0.00016438,2]
[402556478,1768707041795,-160.05555775,0.00016438,2]
[402556480,1768707041804,-500.0,0.00016438,2]
[402556482,1768707041813,-500.0,0.00016438,2]
[402556484,1768707041822,-500.0,0.00016438,2]
[402556486,1768707041831,-500.0,0.00016438,2]
[402556488,1768707041840,-500.0,0.00016438,2]
[402556490,1768707041849,-500.0,0.00016438,2]
[402556492,1768707041859,-500.0,0.00016438,2]
[402556494,1768707041868,-500.0,0.00016438,2]
[402556496,1768707041877,-500.0,0.00016438,2]
[402556497,1768707041886,-500.0,0.00016438,2]
[402556500,1768707041896,-205.52395571,0.00016438,2]
[402556502,1768707041906,-500.0,0.00016438,2]
[402556503,1768707041915,-300.0,0.00016438,2]
[402556505,1768707041923,-500.0,0.00016438,2]
[402556507,1768707041932,-500.0,0.00016438,2]
[402556509,1768707041942,-500.0,0.00016438,2]
[402556511,1768707041951,-500.0,0.00016438,2]
[402556513,1768707041960,-500.0,0.00016438,2]